Cogmind - Beta 13 @@@ ROGUE MODE // 2024.04.29 @ 14:31:23 Player: Sandwich Result: Destroyed by S-10 Pest with Light Assault Rifle Performance ------------- Evolutions (0) 0 Regions Visited (2) 400 Robots Destroyed (9) 45 Value Destroyed (298) 298 Prototype IDs (1) 20 Alien Tech Used (0) 0 Bonus (0) 0 TOTAL SCORE: 763 Bonus ------- None Cogmind --------- Core Integrity 0/250 Matter 300/300 Energy 274/280 System Corruption 0% Temperature Cool (21) Movement Walking (120) Location -10/Mines Parts ------- > --- POWER (1) -------- Cooled Ion Engine > --- PROPULSION (2) --- Aluminum Leg Carbon-fiber Leg > --- UTILITY (2) ------ Small Storage Unit Targeting Computer > --- WEAPON (2) ------- Particle Gun Particle Gun > --- INVENTORY (8) ---- Aluminum Leg Improved Hover Unit Improved Hover Unit Improved Heat Sink Improved Heat Sink EM Pulse Gun Particle Gun Particle Gun Peak State ------------ > --- POWER ------------ Cooled Ion Engine > --- PROPULSION ------- Improved Hover Unit Improved Hover Unit > --- UTILITY ---------- Improved Heat Sink Small Storage Unit > --- WEAPON ----------- Particle Gun Particle Gun > --- INVENTORY -------- Aluminum Leg Aluminum Leg Aluminum Leg Improved Heat Sink Improved Heat Sink EM Pulse Gun Small Laser Particle Gun [Rating: 16] Favorites ----------- Power Cooled Ion Engine Engine Cooled Ion Engine Propulsion Improved Hover Unit Treads Light Treads Leg Aluminum Leg Wheel Wheel Hover Unit Improved Hover Unit Utility Small Storage Unit Device Improved Heat Sink Storage Small Storage Unit Processor Targeting Computer Weapon Particle Gun Energy Gun Particle Gun Ballistic Gun Light Assault Rifle Build | -11 -10 -10 ------- Run | Yrd Mat Min Slots Evolved . | . . . Power . | . . . Propulsion . | . . . Utility . | . . . Weapon . | . . . Parts Attached 18 | 5 9 4 Power 2 | 1 1 . Engine 2 | 1 1 . Core . | . . . Reactor . | . . . Propulsion 9 | 2 4 3 Treads 2 | 1 1 . Leg 3 | . . 3 Wheel 2 | 1 1 . Hover 2 | . 2 . Flight . | . . . Utility 3 | 1 1 1 Device 1 | . 1 . Storage 1 | 1 . . Processor 1 | . . 1 Hackware . | . . . Protection . | . . . Artifact . | . . . Weapon 4 | 1 3 . Energy Gun 2 | . 2 . Energy Cannon . | . . . Ballistic Gun 2 | 1 1 . Ballistic Cannon . | . . . Launcher . | . . . Special Weapon . | . . . Impact Weapon . | . . . Slashing Weapon . | . . . Piercing Weapon . | . . . Special Melee Weapon . | . . . Unidentified Prototypes 1 | . 1 . Parts Lost 3 | . 2 1 Power . | . . . Propulsion 2 | . 2 . Utility 1 | . . 1 Weapon . | . . . Highest Loss Streak 1 | . 1 1 To Critical Strikes . | . . . Average Slot Usage (%) 92 | . 89 97 Engine 14 | . 14 14 Treads 5 | . 8 . Leg 3 | . . 8 Wheel 6 | . 9 . Hover 12 | . 9 18 Device 5 | . 6 3 Storage 14 | . 14 14 Processor 3 | . . 8 Energy Gun 16 | . 9 28 Ballistic Gun 10 | . 17 . Naked Turns . | . . . Heaviest Build 20 | 11 20 20 Greatest Support 25 | 16 16 25 Greatest Overweight (x) 2 | . 2 1 Average Overweight (x) . | . . . Largest Inventory Capacity 8 | 8 8 8 Average Capacity 7 | 6 8 8 Most Carried 8 | 4 8 8 Average Carried 6 | 2 5 7 Final Capacity 8 | 8 8 8 Final Carried 8 | 4 8 8 Class Distribution -------------------- 100% | Mutant Dominant Class ---------------- Mutant | -10/Materials Mutant | -10/Mines Resources | -11 -10 -10 ----------- Run | Yrd Mat Min Matter Collected 435 | 209 186 40 Remotely . | . . . Salvage Created 470 | . 384 86 Parts 30 | . 26 4 Haulers Intercepted 1 | . 1 . Recyclers Shooed 1 | . 1 . Parts Field Recycled . | . . . Retrieved Matter . | . . . Parts Self-Destructed . | . . . Prevented . | . . . Kills | -11 -10 -10 ------- Run | Yrd Mat Min Combat Hostiles Destroyed 9 | . 6 3 Guns 9 | . 6 3 Classes Destroyed 4 | . 3 1 Hauler 1 | . 1 . Recycler 1 | . 1 . Grunt 7 | . 6 1 Assembled 2 | . . 2 Best Kill Streak 3 | . 3 1 Combat Bots Only 3 | . 3 1 Max Kills in Single Turn 1 | . 1 1 Gunslinging . | . . . Exploded . | . . . Melee . | . . . Uniques/NPCs Destroyed . | . . . Combat | -11 -10 -10 -------- Run | Yrd Mat Min Hostile Shots Fired 77 | . 53 24 Missed 16 | . 14 2 Damage Taken 884 | . 560 324 Core 253 | . 179 74 Absorbed by Shields . | . . . Core Remaining (%) 100 | 100 . . Volleys Fired 46 | . 36 10 Largest 2 | . 2 2 Hottest 130 | . 130 130 Shots Fired 89 | . 69 20 Gun 89 | . 69 20 Cannon . | . . . Launcher . | . . . Special . | . . . Kinetic 65 | . 65 . Thermal 24 | . 4 20 Explosive . | . . . Electromagnetic . | . . . Robot Hit Streak 17 | . 17 7 Robot Miss Streak 2 | . 2 2 Penetration Max . | . . . Secondary Targets 1 | . 1 . Max Gunslinging Chain 1 | . 1 . Shots Hit Robots 63 | . 52 11 Core Hits 29 | . 23 6 Critical Kills . | . . . Critical Parts Destroyed . | . . . Critical Strikes . | . . . Melee Attacks . | . . . Impact . | . . . Slashing . | . . . Piercing . | . . . Sneak Attacks . | . . . Combat Hostiles . | . . . Follow-up Attacks . | . . . Damage Inflicted 610 | . 434 176 Guns 610 | . 434 176 Cannons . | . . . Explosions . | . . . Melee . | . . . Ramming . | . . . Kinetic 386 | . 386 . Thermal 224 | . 48 176 Explosive . | . . . Electromagnetic . | . . . Impact . | . . . Slashing . | . . . Piercing . | . . . Highest Corruption . | . . . Average Corruption . | . . . Corruption Purged . | . . . Corruption Blocked . | . . . Overload Shots . | . . . Overflow Damage . | . . . Projectiles . | . . . Explosions . | . . . Melee . | . . . Knockbacks . | . . . Impact . | . . . Kinetic . | . . . Secondary . | . . . Self-Inflicted Damage . | . . . Shots . | . . . Rammed . | . . . Targets Rammed . | . . . Kicked . | . . . Crushed . | . . . Highest Temperature 168 | . 54 168 Average Temperature 35 | . 17 64 Received Heat Transfer 464 | . 372 92 Siege Activations . | . . . Robots Corrupted . | . . . Combat Hostiles . | . . . Parts Fried . | . . . Impact Corruptions . | . . . Robots Melted . | . . . Combat Hostiles . | . . . Parts Melted . | . . . Heat Transferred 518 | . 111 407 Parts Sabotaged . | . . . Parts Stolen . | . . . Parts Stripped . | . . . Power Chain Reactions . | . . . Alert | -11 -10 -10 ------- Run | Yrd Mat Min Peak Influence 187 | . 187 112 Initial 72 | . . 72 Average 98 | . 111 99 Maximum Alert Level . | . . . Low Security (%) 100 | 100 100 100 Level 1 . | . . . Level 2 . | . . . Level 3 . | . . . Level 4 . | . . . Level 5 . | . . . High Security . | . . . Max Security . | . . . Squads Dispatched . | . . . Investigation . | . . . Extermination . | . . . Reinforcement . | . . . Assault . | . . . Garrison . | . . . Intercept . | . . . Searches Triggered . | . . . Construction Impeded . | . . . Haulers Reinforced . | . . . Active Scanning Responses . | . . . Cargo Convoy Interrupts . | . . . Stealth | -11 -10 -10 --------- Run | Yrd Mat Min Distress Signals . | . . . Communications Jammed . | . . . Distress Signals . | . . . Times Spotted 21 | . 10 11 Peak Tracking Total 5 | . 3 5 Tactical Retreats 1 | . 1 . Traps | -11 -10 -10 ------- Run | Yrd Mat Min Traps Triggered . | . . . Indirectly . | . . . Trap Hack Attempts . | . . . Triggered . | . . . Disarmed . | . . . Reprogrammed . | . . . Reused . | . . . Traps Extracted . | . . . Installed . | . . . Triggered 1 | . . 1 Machines | -11 -10 -10 ---------- Run | Yrd Mat Min Machines Disabled . | . . . Max in Single Turn . | . . . Machines Repaired . | . . . Machines Dismantled . | . . . Machines Sabotaged . | . . . Overloaded Fab Kills . | . . . Hacking | -11 -10 -10 --------- Run | Yrd Mat Min Machines Accessed . | . . . Terminals . | . . . Fabricators . | . . . Repair Stations . | . . . Recycling Units . | . . . Scanalyzers . | . . . Garrison Access . | . . . Total Hacks . | . . . Successful . | . . . Failed . | . . . Catastrophic . | . . . Database Lockouts . | . . . Manual . | . . . Terminals . | . . . Fabricators . | . . . Repair Stations . | . . . Recycling Units . | . . . Scanalyzers . | . . . Garrison Access . | . . . Terminal Hacks . | . . . Fabricator Hacks . | . . . Repair Station Hacks . | . . . Recycling Unit Hacks . | . . . Scanalyzer . | . . . Garrison Access Hacks . | . . . Unauthorized Hacks . | . . . Terminals . | . . . Fabricators . | . . . Repair Stations . | . . . Recycling Units . | . . . Scanalyzers . | . . . Garrison Access . | . . . Data Cores Recovered . | . . . Used . | . . . Hacking Detections . | . . . Full Trace Events . | . . . Feedback Events . | . . . Feedback Blocked . | . . . Robot Schematics Acquired . | . . . Robots Built . | . . . Authchips . | . . . Time . | . . . Total Robot Build Rating . | . . . Part Schematics Acquired . | . . . Parts Built . | . . . Authchips . | . . . Time . | . . . Total Part Build Rating . | . . . Parts Repaired . | . . . Time . | . . . Parts Recycled . | . . . Recycled Matter . | . . . Retrieved Matter . | . . . Retrieved Components . | . . . Parts Scanalyzed . | . . . Part Schematics Acquired . | . . . Parts Damaged . | . . . Bothacking | -11 -10 -10 ------------ Run | Yrd Mat Min Used RIF Installer . | . . . Robots Hacked . | . . . Non-combat . | . . . Combat . | . . . Robot Hacks Applied . | . . . Relay Couplers Released . | . . . Fabnet Peak Effective % . | . . . Robots Rewired . | . . . Allies Hacked . | . . . Hacks Repelled . | . . . Allies | -11 -10 -10 -------- Run | Yrd Mat Min Total Allies . | . . . Largest Group . | . . . Highest-Rated Group . | . . . Highest-Rated Ally . | . . . Total Orders . | . . . Ally Attacks . | . . . Total Damage . | . . . Kills . | . . . Allies Corrupted . | . . . Allies Melted . | . . . Intel | -11 -10 -10 ------- Run | Yrd Mat Min Robot Analysis Total . | . . . Derelict Logs Recovered . | . . . Drone Launches . | . . . Drone Recoveries . | . . . Exploration | -11 -10 -10 ------------- Run | Yrd Mat Min Turns Passed 634 | 53 367 214 Spaces Moved 354 | 42 185 127 Core 2 | 2 . . Treads . | . . . Legs 50 | . . 50 Wheels 147 | 40 107 . Hover 155 | . 78 77 Flight . | . . . Fastest Speed 50 | 50 95 116 Average Speed 109 | 97 104 120 Slowest Speed 190 | 100 180 190 Overloaded Moves . | . . . Propulsion Burnouts . | . . . Robots Hopped . | . . . Cave-ins Triggered . | . . . Exploration Rate (%) 14 | 3 24 17 Regions Visited 2 Branch Regions 1 Pre-discovered Areas . | . . . Known Exits Taken . | . . . Unknown Exits Taken 2 | 1 1 . Scrap Searched . | . . . Spaces Dug . | . . . Terrain Destroyed . | . . . Melee . | . . . Projectile . | . . . AOE . | . . . Terrain Rammed . | . . . Walls Destroyed . | . . . Machines Disabled . | . . . Actions | -11 -10 -10 --------- Run | Yrd Mat Min Total 526 | 51 306 169 Wait 83 | 1 56 26 Move 352 | 41 184 127 Hop . | . . . Pick Up 16 | 4 12 . Fast Attach 12 | 5 5 2 Attach 5 | . 4 1 Detach . | . . . Swap 1 | . . 1 Drop 11 | . 9 2 Fire 46 | . 36 10 Melee . | . . . Ram . | . . . Kick . | . . . Crush . | . . . Escape Stasis . | . . . Rewire . | . . . Trap . | . . . Miscellaneous . | . . . Route ------- -11/Scrapyard -10/Materials -10/Mines History --------- Turn | Location | Event 14 | -11/Scrapyard | Discovered new exit (range 15) 54 | -11/Scrapyard | Entered Materials 150 | -10/Materials | Core integrity fell below 50% 284 | -10/Materials | Discovered new exit (range 9) 339 | -10/Materials | Build established: Mutant 421 | -10/Materials | Entered Mines 422 | -10/Mines | Assembled infested the area 427 | -10/Mines | Assisted by a Guerilla fighting off Assembled 461 | -10/Mines | Core integrity fell below 20% 474 | -10/Mines | Met a Derelict bent on vengeance 635 | -10/Mines | Destroyed by S-10 Pest with Light Assault Rifle Last Messages --------------- 00445_ G-34 Mercenary suffers critical hit (Destroy). 00450_ G-34 Mercenary destroyed. 00453_ HV Slug penetrates Wall. 00455_ KC-T0R(h) destroyed. 00464_ as-50577 destroyed. 00466_ as-06568 destroyed. 00468_ as-39465 destroyed. 00472_ as-54983 destroyed. 00474_ 6F-MGB(g): "I WILL HAVE VENGEANCE!" 00474_ Imp. Heat Sink destroyed. 00499_ 6F-MGB(g): "I WILL HAVE VENGEANCE!" 00503_ Acquired Targeting Computer. 00504_ Acquired 10 matter. 00507_ 6F-MGB(g) destroyed. 00514_ as-14802 destroyed. 00565_ Dropped Imp. Hover Unit. 00571_ Acquired 10 matter. 00577_ Acquired Aluminum Leg. 00578_ Acquired 10 matter. 00616_ T-07 Excavator is excavating. Map ----- +----------------------------------------------------+ | | | | | | | | | | | | | | | | | | | | | | | ?????????????????????????????????????????????????? | | ?????????????????????????????????????????????????? | | ?????????????????????????????????????????????????? | | ?????????????????????????????????????????????????? | | ?????????????????????????????????????????????????# | | ?????????????????????????????????????????????????# | | ????????????????????????????????????????????????## | | ????????????????????????????????????????????????# | | ???????????????????##???????????????????????????# | | ???????????????????# ###????????????????????????# | | ????????????#########t ########?????????????????# | | ????????????# #?????????????????#* | | ????????????# s #?????????????????#% | | ????????????# s s #?????????????????# | | ????????????# """ """ """@""" #?????????????????#% | | ????????????# """ """ """ """ ###################= | | ??????????????""" """ """ """ | | ????????????# ################### | | ??????????????""" """ """ """ #?????????????????# | | ????????????????? """ """ """ #?????????????????# | | ??????????????????""" """ """ #?????????????????## | | ?????????????????? #??????????????????? | | ??????????????????""" """ """ #??????????????????? | | ????????????????????" """ """ #??????????????????? | | ????????????????????" """ """ #??????????????????? | | ???????????????????????? ? #??????????????????? | | ???????????????????????? ? #??????????????????? | | ????????????????????????###?##???????????????????? | | ?????????????????????????????????????????????????? | | ?????????????????????????????????????????????????? | | ?????????????????????????????????????????????????? | | ?????????????????????????????????????????????????? | | ?????????????????????????????????????????????????? | | ?????????????????????????????????????????????????? | | ?????????????????????????????????????????????????? | | ?????????????????????????????????????????????????? | | ?????????????????????????????????????????????????? | | ?????????????????????????????????????????????????? | | ?????????????????????????????????????????????????? | +----------------------------------------------------+ Best States ------------- Heat Dissipation 39 Energy Generation 14 Energy Capacity 280 Matter Stores 300 Matter Capacity 300 Sight Range 16 Terrain Scan Density 10 Evasion (%) 55 Targeting Accuracy 5 Recoil Reduction 1 Item Schematics ----------------- None Robot Schematics ------------------ None Fabricated ------------ Nothing Alien Tech Used ----------------- None Achievements -------------- None Challenges ------------ None Game ------ Seed ChipAdvancedDrive Manual? 0 Play Time 00:07:57 Cumulative 214.8 hours Start 2024.04.28 @ 20:40:42 End 2024.04.29 @ 14:31:23 Sessions 2 Manual Loads 0 Difficulty Rogue Special Mode None Game No. 277 Rogue 233 Adventurer 4 Explorer 40 Win Type - Total 9 Types 7/1/0/1/0/0/0/0/0 Lore% 51 Gallery% 75 Achievement% 60 Wizard Run 0 Options --------- Layout 0 ASCII 0 Keyboard 0 Movement Mouse Keybinds 0 Fullscreen 1 Font 24/Smallcaps Map View 76x50 Zoom Use 0% Tactical HUD 1 Map Filters NONE Filters NONE Steam 1 RUN: 6b7dceba-b67a-4a67-ace2-929dbc7c0163